fUSD/lending_fUSD_20250911
["ID","MTS","AMOUNT","RATE_DAILY","PERIOD"]
[384875765,1757605856199,-1241.04,0.00027397,7]
[384875766,1757605856209,-3638.38,0.00027397,7]
[384875767,1757605856218,-400.0,0.00027397,7]
[384875768,1757605856227,-1804.99,0.00027397,7]
[384875769,1757605856237,-400.0,0.00027397,7]
[384875770,1757605856246,-1136.98,0.00027397,7]
[384875771,1757605856256,-400.0,0.00027397,7]
[384875772,1757605856266,-1242.63,0.00027397,7]
[384875773,1757605856275,-9622.83,0.00027397,7]
[384875774,1757605856284,-425.78,0.00027397,7]
[384875775,1757605856293,-400.0,0.00027397,7]
[384875776,1757605856302,-2355.88,0.00027397,7]
[384875777,1757605856311,-400.0,0.00027397,7]
[384875778,1757605856321,-2456.08,0.00027397,7]
[384875779,1757605856330,-400.0,0.00027397,7]
[384875780,1757605856339,-1786.34,0.00027397,7]
[384875781,1757605856349,-400.0,0.00027397,7]
[384875782,1757605856358,-400.0,0.00027397,7]
[384875783,1757605856367,-3617.12,0.00027397,7]
[384875784,1757605856377,-1920.52,0.00027397,7]
[384875785,1757605856386,-2438.07,0.00027397,7]
[384875786,1757605856396,-1565.66,0.00027397,7]
[384875787,1757605856406,-400.0,0.00027397,7]
[384875788,1757605856415,-1727.49,0.00027397,7]
[384875789,1757605856426,-400.0,0.00027397,7]
[384875790,1757605856435,-400.0,0.00027397,7]
[384875791,1757605856445,-820.64,0.00027397,7]
[384875792,1757605856455,-400.0,0.00027397,7]
[384875793,1757605856465,-400.0,0.00027397,7]
[384875794,1757605856474,-400.0,0.00027397,7]
[384875795,1757605856483,-759.49,0.00027397,7]
[384875796,1757605856493,-400.0,0.00027397,7]
[384875797,1757605856502,-4348.26,0.00027397,7]
[384875798,1757605856511,-400.0,0.00027397,7]
[384875799,1757605856520,-400.0,0.00027397,7]
[384875800,1757605856530,-400.0,0.00027397,7]
[384875801,1757605856539,-400.0,0.00027397,7]
[384875802,1757605856548,-400.0,0.00027397,7]
[384875803,1757605856558,-693.37,0.00027397,7]
[384875804,1757605856568,-400.0,0.00027397,7]
[384875805,1757605856578,-400.0,0.00027397,7]
[384875806,1757605856588,-400.0,0.00027397,7]
[384875807,1757605856597,-2598.34,0.00027397,7]
[384875808,1757605856607,-400.0,0.00027397,7]
[384875809,1757605856617,-1729.6,0.00027397,7]
[384875810,1757605856626,-400.0,0.00027397,7]
[384875811,1757605856635,-400.0,0.00027397,7]
[384875812,1757605856644,-465.87,0.00027397,7]
[384875813,1757605856653,-400.0,0.00027397,7]
[384875814,1757605856663,-400.0,0.00027397,7]
[384875815,1757605856672,-2898.19,0.00027397,7]
[384875816,1757605856681,-400.0,0.00027397,7]
[384875817,1757605856691,-400.0,0.00027397,7]
[384875818,1757605856700,-1996.48,0.00027397,7]
[384875819,1757605856712,-400.0,0.00027397,7]
[384875820,1757605856722,-400.0,0.00027397,7]
[384875821,1757605856731,-400.0,0.00027397,7]
[384875822,1757605856741,-620.17,0.00027397,7]
[384875823,1757605856751,-400.0,0.00027397,7]
[384875824,1757605856762,-151.0,0.00027397,7]
[384875825,1757605856772,-400.0,0.00027397,7]
[384875826,1757605856781,-151.0,0.00027397,7]
[384875827,1757605856791,-151.0,0.00027397,7]
[384875828,1757605856801,-2383.47,0.00027397,7]
[384875829,1757605856810,-400.0,0.00027397,7]
[384875830,1757605856819,-151.0,0.00027397,7]
[384875831,1757605856828,-400.0,0.00027397,7]
[384875832,1757605856838,-1820.24,0.00027397,7]
[384875833,1757605856847,-1957.33,0.00027397,7]
[384875834,1757605856856,-1038.24,0.00027397,7]
[384875835,1757605856866,-151.0,0.00027397,7]
[384875836,1757605856876,-213.53853,0.00027397,7]
[384875837,1757605856886,-1692.94,0.00027397,2]
[384875838,1757605856895,-1692.94,0.00027397,2]
[384875839,1757605856904,-1210.86,0.00027397,7]
[384875840,1757605856914,-1692.94,0.00027397,2]
[384875841,1757605856923,-400.0,0.00027397,7]
[384875842,1757605856932,-1692.94,0.00027397,2]
[384875843,1757605856941,-1693.8,0.00027397,7]
[384875844,1757605856951,-492.35,0.00027397,7]
[384875845,1757605856960,-1692.94,0.00027397,2]
[384875846,1757605856969,-1692.94,0.00027397,2]
[384875847,1757605856978,-400.0,0.00027397,7]
[384875848,1757605856987,-2283.81,0.00027397,7]
[384875849,1757605856997,-2161.37,0.00027397,7]
[384875850,1757605857006,-400.0,0.00027397,7]
[384875851,1757605857015,-400.0,0.00027397,7]
[384875852,1757605857024,-645.23,0.00027397,7]
[384875853,1757605857034,-400.0,0.00027397,7]
[384875854,1757605857043,-400.0,0.00027397,7]
[384875855,1757605857054,-1195.0,0.00027397,7]
[384875856,1757605857063,-612.27,0.00027397,7]
[384875857,1757605857073,-400.0,0.00027397,7]
[384875858,1757605857083,-400.0,0.00027397,7]
[384875859,1757605857093,-400.97124624,0.00027397,7]
[384875860,1757605857103,-3765.33,0.00027397,7]
[384875861,1757605857114,-3780.51,0.00027397,7]
[384875862,1757605857124,-400.0,0.00027397,7]
[384875863,1757605857134,-400.0,0.00027397,7]
[384875864,1757605857143,-517.01,0.00027397,7]
[384875865,1757605857153,-400.0,0.00027397,7]
[384875866,1757605857162,-1622.51,0.00027397,7]
[384875867,1757605857171,-2340.2,0.00027397,7]
[384875868,1757605857181,-400.0,0.00027397,7]
[384875869,1757605857190,-1807.6,0.00027397,7]
[384875870,1757605857200,-2086.68,0.00027397,7]
[384875871,1757605857209,-2165.09,0.00027397,7]
[384875872,1757605857218,-400.0,0.00027397,7]
[384875873,1757605857227,-400.0,0.00027397,7]
[384875874,1757605857237,-3436.53,0.00027397,7]
[384875875,1757605857246,-400.0,0.00027397,7]
[384875876,1757605857255,-1659.0,0.00027397,7]
[384875877,1757605857264,-400.0,0.00027397,7]
[384875878,1757605857273,-326.13186431,0.00027397,7]
[384875879,1757605857282,-3161.74,0.00027397,7]
[384875880,1757605857291,-400.0,0.00027397,7]
[384875881,1757605857300,-400.0,0.00027397,7]
[384875882,1757605857310,-434.74,0.00027397,7]
[384875883,1757605857319,-400.0,0.00027397,7]
[384875884,1757605857328,-707.97,0.00027397,7]
[384875885,1757605857337,-599.34,0.00027397,7]
[384875886,1757605857347,-1960.87,0.00027397,7]
[384875887,1757605857356,-400.0,0.00027397,7]
[384875888,1757605857365,-778.63,0.00027397,7]
[384875889,1757605857374,-400.0,0.00027397,7]
[384875890,1757605857385,-400.0,0.00027397,7]
[384875891,1757605857394,-2477.99,0.00027397,7]
[384875892,1757605857404,-400.0,0.00027397,7]
[384875893,1757605857414,-400.0,0.00027397,7]
[384875894,1757605857423,-2296.18,0.00027397,7]
[384875895,1757605857433,-1382.27,0.00027397,7]
[384875896,1757605857442,-3794.06,0.00027397,7]
[384875897,1757605857451,-2408.62,0.00027397,7]
[384875898,1757605857462,-400.0,0.00027397,7]
[384875899,1757605857472,-400.0,0.00027397,7]
[384875900,1757605857482,-960.34,0.00027397,7]
[384875901,1757605857491,-528.79,0.00027397,7]
[384875902,1757605857501,-400.0,0.00027397,7]
[384875903,1757605857511,-2316.21,0.00027397,7]
[384875904,1757605857520,-795.8,0.00027397,7]
[384875905,1757605857530,-602.9,0.00027397,7]
[384875906,1757605857539,-2624.33,0.00027397,7]
[384875907,1757605857548,-2461.8,0.00027397,7]
[384875908,1757605857558,-400.0,0.00027397,7]
[384875909,1757605857569,-400.0,0.00027397,7]
[384875910,1757605857578,-2022.97,0.00027397,7]
[384875911,1757605857588,-1985.46,0.00027397,7]
[384875912,1757605857598,-400.0,0.00027397,7]
[384875913,1757605857608,-400.0,0.00027397,7]
[384875914,1757605857618,-457.99,0.00027397,7]
[384875915,1757605857627,-1805.33,0.00027397,7]
[384875916,1757605857637,-400.0,0.00027397,7]
[384875917,1757605857646,-2519.15,0.00027397,7]
[384875918,1757605857655,-400.0,0.00027397,7]
[384875919,1757605857664,-400.0,0.00027397,7]
[384875920,1757605857673,-400.0,0.00027397,7]
[384875921,1757605857683,-1544.13,0.00027397,7]
[384875922,1757605857692,-1761.26,0.00027397,7]
[384875923,1757605857701,-400.0,0.00027397,7]
[384875924,1757605857713,-917.14,0.00027397,7]
[384875925,1757605857723,-3512.55,0.00027397,7]
[384875926,1757605857733,-400.0,0.00027397,7]
[384875927,1757605857742,-1874.31,0.00027397,7]
[384875928,1757605857752,-2139.72,0.00027397,7]
[384875929,1757605857762,-400.0,0.00027397,7]
[384875930,1757605857771,-400.0,0.00027397,7]
[384875931,1757605857781,-400.0,0.00027397,7]
[384875932,1757605857791,-2138.39,0.00027397,7]
[384875933,1757605857801,-2262.63,0.00027397,7]
[384875934,1757605857810,-1399.12,0.00027397,7]
[384875935,1757605857819,-1399.12,0.00027397,7]
[384875936,1757605857828,-400.0,0.00027397,7]
[384875937,1757605857838,-1399.12,0.00027397,7]
[384875938,1757605857847,-1399.12,0.00027397,7]
[384875939,1757605857857,-400.0,0.00027397,7]
[384875940,1757605857866,-1304.76,0.00027397,7]
[384875941,1757605857875,-400.0,0.00027397,7]
[384875942,1757605857884,-400.0,0.00027397,7]
[384875943,1757605857894,-400.0,0.00027397,7]
[384875944,1757605857903,-400.0,0.00027397,7]
[384875945,1757605857912,-580.15,0.00027397,7]
[384875946,1757605857921,-2770.13,0.00027397,7]
[384875947,1757605857931,-400.0,0.00027397,7]
[384875948,1757605857939,-2457.13,0.00027397,7]
[384875949,1757605857948,-1399.12,0.00027397,7]
[384875950,1757605857958,-1399.12,0.00027397,7]
[384875951,1757605857967,-2453.93,0.00027397,7]
[384875952,1757605857976,-3142.05,0.00027397,7]
[384875953,1757605857986,-1399.12,0.00027397,7]
[384875954,1757605857995,-400.0,0.00027397,7]
[384875955,1757605858004,-1300.55,0.00027397,7]
[384875956,1757605858014,-1399.12,0.00027397,7]
[384875957,1757605858024,-1399.12,0.00027397,7]
[384875958,1757605858034,-500.0,0.00027397,2]
[384875959,1757605858044,-1399.12,0.00027397,7]
[384875960,1757605858054,-400.0,0.00027397,7]
[384875961,1757605858064,-400.0,0.00027397,7]
[384875962,1757605858073,-1354.78,0.00027397,7]
[384875963,1757605858083,-400.0,0.00027397,7]
[384875964,1757605858093,-400.0,0.00027397,7]
[384875965,1757605858102,-2533.16,0.00027397,7]
[384875966,1757605858111,-400.0,0.00027397,7]
[384875967,1757605858120,-2804.96,0.00027397,7]
[384875968,1757605858129,-400.0,0.00027397,7]
[384875969,1757605858139,-1117.42,0.00027397,7]
[384875970,1757605858151,-943.06,0.00027397,7]
[384875971,1757605858161,-1785.46,0.00027397,7]
[384875972,1757605858171,-1509.27,0.00027397,7]
[384875973,1757605858181,-850.07,0.00027397,7]
[384875974,1757605858190,-400.0,0.00027397,7]
[384875975,1757605858200,-400.0,0.00027397,7]
[384875976,1757605858210,-400.0,0.00027397,7]
[384875977,1757605858219,-1113.7,0.00027397,7]
[384875978,1757605858229,-400.0,0.00027397,7]
[384875979,1757605858238,-2762.87,0.00027397,7]
[384875980,1757605858248,-717.29,0.00027397,7]
[384875981,1757605858267,-1904.7,0.00027397,7]
[384875982,1757605858279,-540.4,0.00027397,7]
[384875983,1757605858288,-403.07971485,0.00027397,7]
[384875984,1757605858297,-1746.16,0.00027397,7]
[384875985,1757605858306,-400.0,0.00027397,7]
[384875986,1757605858316,-1697.64,0.00027397,7]
[384875987,1757605858325,-1137.89,0.00027397,7]
[384875988,1757605858335,-400.0,0.00027397,7]
[384875989,1757605858344,-400.0,0.00027397,7]
[384875990,1757605858354,-1451.52,0.00027397,7]
[384875991,1757605858363,-2634.64,0.00027397,7]
[384875992,1757605858373,-2228.44,0.00027397,7]
[384875993,1757605858382,-403.28589398,0.00027397,7]
[384875994,1757605858391,-400.0,0.00027397,7]
[384875995,1757605858402,-400.0,0.00027397,7]
[384875996,1757605858411,-400.0,0.00027397,7]
[384875997,1757605858420,-400.0,0.00027397,7]
[384875998,1757605858429,-400.0,0.00027397,7]
[384875999,1757605858439,-1904.98,0.00027397,7]
[384876000,1757605858448,-400.0,0.00027397,7]
[384876001,1757605858458,-400.0,0.00027397,7]
[384876002,1757605858468,-400.0,0.00027397,7]
[384876003,1757605858479,-4124.61,0.00027397,7]
[384876004,1757605858489,-500.0,0.00027397,2]
[384876005,1757605858498,-1339.6,0.00027397,7]
[384876006,1757605858685,-500.0,0.00027397,2]
[384876007,1757605858716,-643.86597225,0.00027397,2]
[384876008,1757605858726,-500.0,0.00027397,2]
[384876009,1757605858736,-500.0,0.00027397,2]
[384876010,1757605858744,-1449.39,0.00027397,7]
[384876011,1757605858754,-400.0,0.00027397,7]
[384876012,1757605858763,-400.0,0.00027397,7]
[384876013,1757605858773,-3076.09,0.00027397,7]
[384876014,1757605858782,-2067.51,0.00027397,7]
[384876015,1757605858791,-400.0,0.00027397,7]
[384876016,1757605858801,-2292.44,0.00027397,7]
[384876017,1757605858810,-840.78,0.00027397,7]
[384876018,1757605858820,-573.66,0.00027397,7]
[384876019,1757605858829,-1776.38,0.00027397,7]
[384876020,1757605858839,-1068.76,0.00027397,7]
[384876021,1757605858849,-1478.5,0.00027397,7]
[384876022,1757605858858,-262.55445039,0.00027397,7]
[384876023,1757605858867,-405.06093258,0.00027397,7]
[384876024,1757605858877,-400.0,0.00027397,7]
[384876025,1757605858887,-400.0,0.00027397,7]
[384876026,1757605858896,-500.0,0.00027397,7]
[384876027,1757605858906,-1544.78,0.00027397,7]
[384876028,1757605858915,-500.0,0.00027397,7]
[384876029,1757605858925,-1879.48,0.00027397,7]
[384876030,1757605858935,-319.9892054,0.00027397,7]
[384876031,1757605858944,-1618.9,0.00027397,7]
[384876032,1757605858954,-400.0,0.00027397,7]
[384876033,1757605858964,-400.0,0.00027397,7]
[384876034,1757605858973,-1568.7,0.00027397,7]
[384876035,1757605858983,-400.0,0.00027397,7]
[384876036,1757605858992,-513.37,0.00027397,7]
[384876037,1757605859002,-1924.9,0.00027397,7]
[384876038,1757605859011,-1985.93,0.00027397,7]
[384876039,1757605859020,-400.0,0.00027397,7]
[384876040,1757605859030,-460.29,0.00027397,7]
[384876041,1757605859039,-2088.86,0.00027397,7]
[384876042,1757605859049,-400.0,0.00027397,7]
[384876043,1757605859062,-400.0,0.00027397,7]
[384876044,1757605859072,-400.0,0.00027397,7]
[384876045,1757605859082,-2236.64,0.00027397,7]
[384876046,1757605859092,-1942.28,0.00027397,7]
[384876047,1757605859102,-400.0,0.00027397,7]
[384876048,1757605859112,-400.0,0.00027397,7]
[384876049,1757605859122,-400.0,0.00027397,7]
[384876050,1757605859131,-2007.3,0.00027397,7]
[384876051,1757605859140,-2946.76,0.00027397,7]
[384876052,1757605859150,-622.51,0.00027397,7]
[384876053,1757605859160,-3171.48,0.00027397,7]
[384876054,1757605859169,-300.0,0.00027397,7]
[384876055,1757605859179,-400.0,0.00027397,7]
[384876056,1757605859188,-400.0,0.00027397,7]
[384876057,1757605859197,-1890.42,0.00027397,7]
[384876058,1757605859207,-2185.76,0.00027397,7]
[384876059,1757605859217,-361.34,0.00027397,7]
[384876060,1757605859227,-5527.16,0.00027397,7]
[384876061,1757605859236,-400.0,0.00027397,7]
[384876062,1757605859245,-400.0,0.00027397,7]
[384876063,1757605859255,-400.0,0.00027397,7]
[384876064,1757605859264,-532.08,0.00027397,7]
[384876065,1757605859274,-2312.9,0.00027397,7]
[384876066,1757605859285,-1120.19,0.00027397,7]
[384876067,1757605859294,-400.0,0.00027397,7]
[384876068,1757605859304,-400.0,0.00027397,7]
[384876069,1757605859314,-798.88,0.00027397,7]
[384876070,1757605859323,-400.0,0.00027397,7]
[384876071,1757605859333,-450.52,0.00027397,7]
[384876072,1757605859343,-400.0,0.00027397,7]
[384876073,1757605859352,-401.03,0.00027397,7]
[384876074,1757605859361,-400.0,0.00027397,7]
[384876075,1757605859371,-400.0,0.00027397,7]
[384876076,1757605859380,-1547.04,0.00027397,7]
[384876077,1757605859390,-3674.92,0.00027397,7]
[384876078,1757605859400,-400.0,0.00027397,7]
[384876079,1757605859409,-182.646613,0.00027397,7]
[384876080,1757605859419,-400.0,0.00027397,7]
[384876081,1757605859428,-400.0,0.00027397,7]
[384876082,1757605859438,-182.646613,0.00027397,7]
[384876083,1757605859448,-362.3688389,0.00027397,7]
[384876085,1757605861161,-178.626547,0.00027387,7]
[384876086,1757605861171,-178.626547,0.00027387,7]
[384876087,1757605861180,-1306.7411611,0.00027397,7]
[384876088,1757605861189,-197.5570325,0.00027397,7]
[384876089,1757605861200,-385.47304823,0.00027397,7]
[384876090,1757605861211,-2541.11991927,0.00027397,7]
[384876091,1757605861220,-182.646613,0.00027397,7]
[384876092,1757605861229,-182.646613,0.00027397,7]
[384876093,1757605861239,-2621.12,0.00027397,7]
[384876094,1757605861248,-32.85072548,0.00027397,7]
[384876095,1757605861314,-367.14927452,0.00027397,7]
[384876096,1757605861323,-354.85072548,0.00027397,7]
[384876097,1757605861334,-45.14927452,0.00027397,7]
[384876098,1757605861343,-235.30072548,0.00027397,7]
[384876100,1757605869944,-500.0,0.00023404,2]
[384876101,1757605873441,-789.0763227,0.00023404,2]
[384876102,1757605873749,-422.37899369,0.00024208,2]
[384876110,1757606098754,1493.0,0.0003013,120]
[384876111,1757606102555,1172.0,0.0003013,120]
[384876113,1757606160709,746.64313796,0.0003013,120]
[384876114,1757606164334,505.21754803,0.0003013,120]
[384876115,1757606196574,-129.12257645,0.00024208,2]
[384876116,1757606196603,-176.83019013,0.00024208,2]
[384876117,1757606196631,-250.0,0.00024208,2]
[384876118,1757606196659,-200.0,0.00024326,2]
[384876119,1757606196689,-1200.0,0.00024899,2]
[384876120,1757606196718,-5521.22419922,0.000249,2]
[384876121,1757606196745,-235.139277,0.00025379,2]
[384876122,1757606196771,-250.0,0.00025523,2]
[384876123,1757606196797,-300.0,0.00025678,2]
[384876124,1757606196825,-732.82843506,0.00025679,2]
[384876125,1757606196853,-257.91778498,0.00025679,2]
[384876126,1757606196881,-3000.0,0.00025679,2]
[384876127,1757606196914,-2500.0,0.00025744,2]
[384876128,1757606196942,-300.0,0.00025744,2]
[384876129,1757606196972,-250.0,0.00025744,2]
[384876130,1757606197287,-273.06290666,0.00025744,2]
[384876131,1757606208720,-123.01,0.00024806,2]
[384876132,1757606208780,-53.98,0.00024806,2]
[384876133,1757606221140,-250.0,0.00024806,2]
[384876134,1757606233239,-273.06290666,0.00024806,2]
[384876135,1757606245587,-42.39045215,0.00024208,2]
[384876136,1757606245737,-173.13688068,0.00024208,2]
[384876137,1757606257364,-329.84,0.00024658,2]
[384876138,1757606257394,-134.96709334,0.00024806,2]
[384876139,1757606257457,-1570.38581332,0.000249,2]
[384876140,1757606270545,-732.82843506,0.000249,2]
[384876141,1757606273665,164.32,0.00016438,2]
[384876143,1757606282604,-164.32,0.00022783,2]
[384876144,1757606282631,-584.91,0.00024806,2]
[384876145,1757606282661,-157.32,0.00024806,2]
[384876146,1757606283023,-1186.9,0.000249,2]
[384876147,1757606294080,224.96,0.00030136,120]
[384876148,1757606294714,-300.0,0.000249,2]
[384876151,1757606347546,782.0,0.00030136,120]
[384876152,1757606430979,-250.0,0.00021237,2]
[384876153,1757606444424,-235.139277,0.00021237,2]
[384876154,1757606456072,-1570.38581332,0.00021237,2]
[384876155,1757606468042,-732.82843506,0.00021237,2]
[384876157,1757606480999,-1186.9,0.00021237,2]
[384876159,1757606493571,-300.0,0.00021237,2]
[384876160,1757606529636,-250.0,0.00021237,2]
[384876161,1757606541767,-273.06290666,0.00021237,2]
[384876162,1757606565719,-157.32,0.00021237,2]
[384876163,1757606578228,-44.36356796,0.00021237,2]
[384876164,1757606622997,-173.13688068,0.00023361,2]
[384876165,1757606716008,156.0,0.00030137,120]
[384876170,1757606857394,-176.83019013,0.00023361,2]
[384876173,1757606975837,-38.6971427,0.00023361,2]
[384876174,1757606975884,-73.5657146,0.00023361,2]
[384876175,1757606987833,-164.19613753,0.00023361,2]
[384876179,1757607032284,-12.23814787,0.00023361,2]
[384876180,1757607032293,-625.22,0.00024309,2]
[384876181,1757607032302,-176.99,0.00024309,2]
[384876182,1757607032311,-1689.980541,0.00024459,2]
[384876183,1757607032320,-166.1900357,0.00024459,2]
[384876186,1757607032333,-210.66516335,0.00024514,2]
[384876188,1757607032343,-235.139277,0.00024676,2]
[384876190,1757607032352,-166.47344729,0.000248,2]
[384876192,1757607032361,-493.24055252,0.000248,2]
[384876194,1757607032372,-1200.0,0.00024898,2]
[384876196,1757607032381,-300.0,0.00024899,2]
[384876198,1757607032391,-300.0,0.00024899,2]
[384876200,1757607032401,-168.91260373,0.000249,2]
[384876202,1757607032410,-5721.5112509,0.000249,2]
[384876204,1757607032420,-150.99,0.0002498,2]
[384876206,1757607032429,-636.62,0.0002498,2]
[384876208,1757607032439,-408.0,0.00025054,2]
[384876210,1757607032448,-370.88925581,0.00025055,2]
[384876212,1757607032458,-500.0,0.00025055,2]
[384876214,1757607032467,-500.0,0.00025055,2]
[384876216,1757607032477,-162.29577267,0.00025055,2]
[384876218,1757607032487,-500.0,0.00025055,2]
[384876220,1757607032496,-500.0,0.00025055,2]
[384876222,1757607032505,-500.0,0.00025055,2]
[384876224,1757607032515,-500.0,0.00025055,2]
[384876226,1757607032524,-500.0,0.00025055,2]
[384876228,1757607032534,-500.0,0.00025055,2]
[384876230,1757607032543,-500.0,0.00025055,2]
[384876232,1757607032553,-220.38182247,0.00025055,2]
[384876234,1757607032565,-279.61817753,0.00025055,2]
[384876236,1757607032574,-500.0,0.00025055,2]
[384876238,1757607032584,-500.0,0.00025055,2]
[384876241,1757607032593,-515.37577249,0.00025055,2]
[384876243,1757607032603,-500.0,0.00025055,2]
[384876245,1757607032613,-500.0,0.00025055,2]
[384876247,1757607032622,-200.0,0.00025185,2]
[384876249,1757607032631,-20.71039764,0.00025211,2]
[384876253,1757607032665,-559.61960236,0.00025211,2]
[384876255,1757607032675,-666.0,0.0002526,3]
[384876257,1757607032684,-1000.0,0.00025337,2]
[384876259,1757607032694,-216.78006572,0.00025358,2]
[384876264,1757607032729,-33.21993428,0.00025358,2]
[384876266,1757607032739,-1852.42,0.00025372,2]
[384876268,1757607032748,-1225.83641213,0.00025433,2]
[384876270,1757607032759,-692.80358787,0.00025433,2]
[384876272,1757607032768,-370.17,0.00025491,2]
[384876273,1757607032778,-1750.24,0.00025524,2]
[384876275,1757607032788,-165.2,0.00025611,2]
[384876277,1757607032798,-610.12199771,0.00025612,2]
[384876279,1757607032809,-400.71691331,0.00025612,2]
[384876282,1757607032836,-1989.16108898,0.00025612,2]
[384876284,1757607032845,-257.91778498,0.00025612,2]
[384876286,1757607032855,-151.0,0.00025612,2]
[384876287,1757607032865,-3958.93000145,0.00025656,2]
[384876289,1757607032876,-881.94607001,0.00025656,2]
[384876291,1757607032888,-2196.97392854,0.00025656,2]
[384876293,1757607032898,-253.5162353,0.00025697,2]
[384876295,1757607032908,-176.83019013,0.00025697,2]
[384876297,1757607032918,-250.0,0.00025697,2]
[384876298,1757607032927,-458.56378158,0.00025697,2]
[384876300,1757607032936,-251.94360781,0.00025697,2]
[384876302,1757607032945,-322.6107,0.00025742,2]
[384876304,1757607032955,-1000.0,0.00025742,2]
[384876305,1757607032964,-1000.0,0.00025742,2]
[384876307,1757607032973,-1000.0,0.00025742,2]
[384876309,1757607032983,-1000.0,0.00025742,2]
[384876311,1757607032992,-160.0,0.00025742,2]
[384876313,1757607033001,-1000.0,0.00025742,2]
[384876314,1757607033011,-1000.0,0.00025742,2]
[384876316,1757607033020,-1000.0,0.00025742,2]
[384876318,1757607033029,-1000.0,0.00025742,2]
[384876320,1757607033039,-1000.0,0.00025742,2]
[384876322,1757607033048,-1000.0,0.00025742,2]
[384876323,1757607033058,-1000.0,0.00025742,2]
[384876325,1757607033068,-1000.0,0.00025742,2]
[384876327,1757607033078,-151.0,0.00025742,2]
[384876329,1757607033089,-500.0,0.00025742,2]
[384876331,1757607033099,-670.58624095,0.00025742,2]
[384876333,1757607033109,-1000.0,0.00025742,2]
[384876335,1757607033119,-1000.0,0.00025742,2]
[384876337,1757607033128,-1000.0,0.00025742,2]
[384876339,1757607033139,-1000.0,0.00025742,2]
[384876340,1757607033148,-1000.0,0.00025742,2]
[384876342,1757607033158,-1000.0,0.00025742,2]
[384876344,1757607033168,-1000.0,0.00025742,2]
[384876346,1757607033178,-1000.0,0.00025742,2]
[384876348,1757607033188,-1000.0,0.00025742,2]
[384876349,1757607033198,-1000.0,0.00025742,2]
[384876351,1757607033207,-1000.0,0.00025742,2]
[384876353,1757607033217,-1000.0,0.00025742,2]
[384876355,1757607033229,-1400.51,0.00025756,2]
[384876357,1757607033241,-500.0,0.00025756,2]
[384876359,1757607033251,-395.92700095,0.00025756,2]
[384876360,1757607033260,-302.01634895,0.00025756,2]
[384876362,1757607033271,-217.62224571,0.00025756,2]
[384876364,1757607033281,-500.0,0.00025756,2]
[384876366,1757607033290,-34367.44,0.00025757,2]
[384876368,1757607033300,-500.0,0.00025797,2]
[384876370,1757607033311,-574.95,0.0002583,2]
[384876371,1757607033320,-5000.0,0.00025843,2]
[384876373,1757607033330,-500.0,0.00025852,2]
[384876375,1757607033339,-305.0,0.000259,2]
[384876377,1757607033348,-500.0,0.00025907,2]
[384876379,1757607033358,-12077.28251541,0.00025918,2]
[384876381,1757607033368,-151.85,0.00025949,2]
[384876383,1757607033378,-150.0,0.00025949,2]
[384876385,1757607033388,-500.0,0.00025962,2]
[384876386,1757607033400,-150.0,0.00025967,7]
[384876388,1757607033410,-625.22,0.0002597,7]
[384876390,1757607033420,-176.99,0.0002597,7]